fUST/lending_fUST_20240818
["ID","MTS","AMOUNT","RATE_DAILY","PERIOD"]
[335206673,1723979368083,-154.89242792,0.0001,2]
[335206674,1723979368105,-208.04413736,0.0001,2]
[335206675,1723979368127,-154.98705468,0.0001,2]
[335206676,1723979368149,-587.0,0.00010309,2]
[335206677,1723979368170,-587.0,0.00010309,2]
[335206678,1723979368192,-55464.07600172,0.00010739,2]
[335206679,1723979368215,-192.27,0.00010959,2]
[335206680,1723979368236,-160.23,0.00010959,2]
[335206681,1723979368258,-801.16,0.00010959,2]
[335206682,1723979368279,-486.31595418,0.00011144,2]
[335206683,1723979368302,-823.0,0.0001134,2]
[335206684,1723979368324,-465.0,0.0001134,2]
[335206685,1723979368346,-500.0,0.0001173,2]
[335206686,1723979368375,-54531.7621102,0.000119,2]
[335206687,1723979368401,-20792.59733498,0.00011987,2]
[335206688,1723979368424,-54531.7621102,0.00011989,2]
[335206689,1723979368446,-5186.1272954,0.00012053,2]
[335206690,1723979368469,-5186.1272954,0.00012262,2]
[335206691,1723979368494,-500.0,0.00012348,2]
[335206692,1723979368525,-5186.1272954,0.00012471,2]
[335206693,1723979368549,-1152.0,0.00012474,2]
[335206694,1723979368571,-8843.52115837,0.00012516,2]
[335206695,1723979368595,-3091.61067347,0.00012551,2]
[335206696,1723979368616,-1500.0,0.00012551,2]
[335206697,1723979368638,-2127.82180592,0.00012629,2]
[335206698,1723979368659,-2166.01446806,0.00012629,2]
[335206699,1723979368681,-1766.30882102,0.00012629,2]
[335206700,1723979368704,-2142.17325985,0.00012629,2]
[335206701,1723979368727,-23197.74149923,0.0001267,2]
[335206769,1723979438562,-237.72164958,9.589e-05,2]
[335206770,1723979438578,-1126.48014564,9.589e-05,2]
[335206771,1723979438593,-250.0,0.00011985,2]
[335206772,1723979438608,-250.0,0.00012017,2]
[335206773,1723979438622,-250.0,0.0001205,2]
[335206774,1723979438636,-250.0,0.00012083,2]
[335206775,1723979438649,-250.0,0.00012116,2]
[335206776,1723979438664,-250.0,0.00012149,2]
[335206777,1723979438677,-8843.52115837,0.00012163,2]
[335206778,1723979438691,-250.0,0.00012182,2]
[335206779,1723979438703,-250.0,0.00012215,2]
[335206780,1723979438713,-250.0,0.00012248,2]
[335206781,1723979438723,-250.0,0.00012281,2]
[335206782,1723979438733,-250.0,0.00012313,2]
[335206783,1723979438743,-250.0,0.00012346,2]
[335206784,1723979438752,-300.0,0.00012355,2]
[335206785,1723979438762,-250.0,0.00012379,2]
[335206786,1723979438771,-250.0,0.00012412,2]
[335206787,1723979438781,-250.0,0.00012445,2]
[335206788,1723979439004,-250.0,0.00012478,2]
[335206789,1723979439017,-250.0,0.00012511,2]
[335206790,1723979439029,-250.0,0.00012544,2]
[335206791,1723979439040,-2712.30651884,0.00012551,2]
[335206792,1723979439051,-850.51877308,0.00012551,2]
[335206793,1723979439060,-250.0,0.00012576,2]
[335206794,1723979439071,-250.0,0.00012609,2]
[335206795,1723979439080,-31334.02061097,0.0001267,2]
[335206796,1723979439090,-811.29992625,0.00012689,2]
[335206797,1723979439100,-817.42780859,0.00012782,2]
[335206798,1723979439110,-728.71535683,0.00012782,2]
[335206799,1723979439119,-933.70029218,0.00012782,2]
[335206800,1723979439129,-154.71377951,0.00012886,2]
[335206801,1723979439139,-2074.45091816,0.00012891,2]
[335206802,1723979439148,-154.91282748,0.00012898,2]
[335206803,1723979439158,-154.79103211,0.00012934,2]
[335206804,1723979439168,-543.94914029,0.00012934,2]
[335206805,1723979439178,-688.60272838,0.00012934,2]
[335206806,1723979439188,-154.71377951,0.00012934,2]
[335206807,1723979439198,-182.93765574,0.00012934,2]
[335206808,1723979439208,-188.4831986,0.00012934,2]
[335206809,1723979439218,-404.39043971,0.00012934,2]
[335206810,1723979439228,-210.21705151,0.00012971,2]
[335206811,1723979439237,-256.23174061,0.00012971,2]
[335206812,1723979439247,-520.55254541,0.00012971,2]
[335206813,1723979439256,-320.23588557,0.00012971,2]
[335206814,1723979439266,-160.39523982,0.00012971,2]
[335206815,1723979439276,-154.71377951,0.00012971,2]
[335206816,1723979439286,-665.39526372,0.00012971,2]
[335206817,1723979439295,-196.79108262,0.00012971,2]
[335206818,1723979439305,-601.81919739,0.00012985,2]
[335206819,1723979439314,-154.71377951,0.00012985,2]
[335206820,1723979439324,-493.25192424,0.00012985,2]
[335206821,1723979439333,-154.71377951,0.00012985,2]
[335206822,1723979439343,-342.62154213,0.00012989,2]
[335206823,1723979439353,-157.07977921,0.00012989,2]
[335206824,1723979439362,-413.61733345,0.00012989,2]
[335206825,1723979439372,-190.05416468,0.00012989,2]
[335206826,1723979439381,-109063.52422,0.0001299,2]
[335206827,1723979439391,-413.61733345,0.00012991,2]
[335206828,1723979439400,-569.49565221,0.00012991,2]
[335206829,1723979439418,-500.0,0.00012997,2]
[335206830,1723979439427,-301.50555711,0.00012999,2]
[335206831,1723979439437,-779.97165007,0.00012999,2]
[335206832,1723979439446,-862.23977155,0.00013,2]
[335206833,1723979439455,-75019.28742372,0.00013,2]
[335206834,1723979439464,-154.71377951,0.00013,2]
[335206835,1723979439474,-154.71377951,0.00013051,2]
[335206836,1723979439484,-420.0,0.0001359,2]
[335206837,1723979439497,-495.09081333,0.00013599,2]
[335206838,1723979439506,-500.0,0.00013682,2]
[335206839,1723979439516,-54531.7621102,0.00013689,2]
[335206840,1723979439527,-502.23550132,0.00013698,2]
[335206841,1723979439539,-500.0,0.00013698,2]
[335206842,1723979439549,-505.62907527,0.00013698,2]
[335206843,1723979439558,-334.77462412,0.00013698,2]
[335206844,1723979439570,-500.0,0.00013698,2]
[335206845,1723979439580,-506.53793831,0.00013698,2]
[335206846,1723979439591,-203.65312641,0.00013698,2]
[335206847,1723979439602,-536.02607522,0.00013698,2]
[335206848,1723979439613,-644.53950123,0.00013698,2]
[335206849,1723979439622,-500.0,0.00013698,2]
[335206850,1723979439632,-189.36293685,0.00013698,2]
[335206851,1723979439642,-500.0,0.00013698,2]
[335206852,1723979439652,-500.0,0.00013698,2]
[335206853,1723979439664,-500.0,0.00013698,2]
[335206854,1723979439673,-500.0,0.00013698,2]
[335206855,1723979439683,-500.0,0.00013698,2]
[335206856,1723979439694,-622.7205,0.00013698,2]
[335206857,1723979439704,-500.0,0.00013698,2]
[335206858,1723979439713,-500.0,0.00013698,2]
[335206859,1723979439723,-500.0,0.00013698,2]
[335206860,1723979439733,-500.0,0.00013698,2]
[335206861,1723979439742,-500.0,0.00013698,2]
[335206862,1723979439753,-500.0,0.00013698,2]
[335206863,1723979439764,-500.0,0.00013698,2]
[335206864,1723979439775,-350.0,0.00013698,2]
[335206865,1723979439784,-300.0,0.00013698,2]
[335206866,1723979439793,-300.0,0.00013698,2]
[335206867,1723979439804,-500.0,0.00013698,2]
[335206868,1723979439813,-647.04816557,0.00013698,2]
[335206869,1723979439823,-522.15241132,0.00013698,2]
[335206870,1723979439832,-154.76012181,0.00013698,2]
[335206871,1723979439841,-158.08588793,0.00013698,2]
[335206872,1723979439851,-158.08588793,0.00013698,2]
[335206873,1723979439860,-613.97821,0.00013699,2]
[335206874,1723979439870,-454.6053446,0.00013699,2]
[335206875,1723979439879,-3000.0,0.00013699,2]
[335206876,1723979439888,-500.0,0.00013699,2]
[335206877,1723979439899,-500.0,0.00013699,2]
[335206878,1723979439911,-500.0,0.00013699,2]
[335206879,1723979439921,-500.0,0.00013699,2]
[335206880,1723979439931,-406.05462763,0.00013699,2]
[335206881,1723979439940,-500.0,0.00013699,2]
[335206882,1723979439950,-500.0,0.00013699,2]
[335206883,1723979439959,-500.0,0.00013699,2]
[335206884,1723979439969,-500.0,0.00013699,2]
[335206885,1723979439978,-500.0,0.00013699,2]
[335206886,1723979439987,-500.0,0.00013699,2]
[335206887,1723979439997,-500.0,0.00013699,2]
[335206888,1723979440006,-500.0,0.00013699,2]
[335206889,1723979440016,-500.0,0.00013699,2]
[335206890,1723979440025,-385.59088392,0.00013699,2]
[335206891,1723979440035,-500.0,0.00013699,2]
[335206892,1723979440045,-500.0,0.00013699,2]
[335206893,1723979440056,-500.0,0.00013699,2]
[335206894,1723979440066,-500.0,0.00013699,2]
[335206895,1723979440076,-500.0,0.00013699,2]
[335206896,1723979440086,-500.0,0.00013699,2]
[335206897,1723979440096,-461.83538854,0.00013699,2]
[335206898,1723979440105,-500.0,0.00013699,2]
[335206899,1723979440116,-500.0,0.00013699,2]
[335206900,1723979440125,-500.0,0.00013699,2]
[335206901,1723979440135,-481.64092165,0.00013699,2]
[335206902,1723979440144,-500.0,0.00013699,2]
[335206903,1723979440154,-500.0,0.00013699,2]
[335206904,1723979440163,-412.88262594,0.00013699,2]
[335206905,1723979440173,-2620.0,0.00013699,2]
[335206906,1723979440182,-2620.0,0.00013699,2]
[335206907,1723979440191,-2620.0,0.00013699,2]
[335206908,1723979440201,-2620.0,0.00013699,2]
[335206909,1723979440210,-2620.0,0.00013699,2]
[335206910,1723979440220,-158.036925,0.000137,2]
[335206912,1723979440230,-2074.45091816,0.00013753,2]
[335206913,1723979440240,-154.94466996,0.00014,2]
[335206914,1723979440251,-150.112233,0.00014,2]
[335206915,1723979440261,-238.142252,0.00014247,2]
[335206917,1723979440270,-150.112233,0.000144,2]
[335206919,1723979440280,-500.0,0.00014402,2]
[335206921,1723979440289,-2074.45091816,0.00014615,2]
[335206923,1723979440299,-150.112233,0.000147,2]
[335206924,1723979440308,-210.05495906,0.000149,2]
[335206925,1723979440317,-210.05495905,0.000149,2]
[335206927,1723979440327,-587.0,0.00014949,2]
[335206928,1723979440337,-5244.23039316,0.00015,2]
[335206929,1723979440347,-154.88006811,0.00015,2]
[335206930,1723979440357,-155.00357971,0.00015,2]
[335206931,1723979440367,-217.64703419,0.00015,2]
[335206932,1723979440376,-150.112233,0.000151,2]
[335206933,1723979440386,-500.0,0.0001516,2]
[335206934,1723979440395,-42407.2799269,0.00015357,2]
[335206935,1723979440406,-47701.95882941,0.00015357,2]
[335206936,1723979440416,-1358.00511538,0.00015357,2]
[335206937,1723979440425,-1890.16392144,0.00015357,2]
[335206938,1723979440435,-15476.51405491,0.00015357,2]
[335206939,1723979440444,-288.24477057,0.00015357,2]
[335206940,1723979440454,-150.112233,0.000154,2]
[335206941,1723979440464,-2074.45091816,0.00015476,2]
[335206942,1723979440474,-150.112233,0.000158,2]
[335206943,1723979440483,-500.0,0.00015958,2]
[335206944,1723979440493,-154.69833824,0.00016,2]
[335206945,1723979440506,-150.112233,0.000161,2]
[335206946,1723979440515,-2074.45091816,0.00016338,2]
[335206947,1723979440526,-40000.0,0.00016338,2]
[335206948,1723979440536,-396.29599239,0.00016438,2]
[335206949,1723979440547,-502.39336279,0.00016438,2]
[335206950,1723979440558,-554.6380685,0.00016438,2]
[335206952,1723979440569,-502.82990042,0.00016438,2]
[335206954,1723979440582,-398.80764802,0.00016438,2]
[335206956,1723979440592,-500.0,0.00016438,2]
[335206958,1723979440601,-185.56289874,0.00016438,2]
[335206960,1723979440611,-245.65795402,0.00016438,2]
[335206962,1723979440620,-500.0,0.00016438,2]
[335206963,1723979440629,-503.19221035,0.00016438,2]
[335206965,1723979440639,-505.68544623,0.00016438,2]
[335206966,1723979440648,-500.0,0.00016438,2]
[335206967,1723979440659,-500.0,0.00016438,2]
[335206968,1723979440668,-500.0,0.00016438,2]
[335206969,1723979440678,-500.0,0.00016438,2]
[335206970,1723979440687,-549.04321915,0.00016438,2]
[335206971,1723979440697,-500.0,0.00016438,2]
[335206972,1723979440706,-500.0,0.00016438,2]
[335206973,1723979440716,-500.0,0.00016438,2]
[335206974,1723979440726,-500.0,0.00016438,2]
[335206975,1723979440736,-500.0,0.00016438,2]
[335206976,1723979440745,-500.0,0.00016438,2]
[335206978,1723979440755,-553.69321237,0.00016438,2]
[335206979,1723979440764,-500.0,0.00016438,2]
[335206981,1723979440773,-500.0,0.00016438,2]
[335206982,1723979440783,-276.85208661,0.00016438,2]
[335206983,1723979440792,-500.0,0.00016438,2]
[335206985,1723979440801,-500.0,0.00016438,2]
[335206986,1723979440811,-500.0,0.00016438,2]
[335206987,1723979440821,-500.0,0.00016438,2]
[335206988,1723979440832,-289.56560944,0.00016438,2]
[335206989,1723979440842,-500.0,0.00016438,2]
[335206990,1723979440854,-500.0,0.00016438,2]
[335206991,1723979440865,-500.0,0.00016438,2]
[335206992,1723979440874,-500.0,0.00016438,2]
[335206993,1723979440884,-512.97424818,0.00016438,2]
[335206994,1723979440893,-500.0,0.00016438,2]
[335206995,1723979440906,-507.81605481,0.00016438,2]
[335206996,1723979440916,-500.0,0.00016438,2]
[335206997,1723979440925,-500.0,0.00016438,2]
[335206998,1723979440935,-505.55103988,0.00016438,2]
[335206999,1723979440945,-500.0,0.00016438,2]
[335207000,1723979440954,-643.29991534,0.00016438,2]
[335207001,1723979440963,-500.0,0.00016438,2]
[335207003,1723979440973,-506.33476054,0.00016438,2]
[335207005,1723979440983,-509.9356731,0.00016438,2]
[335207007,1723979440992,-513.21989605,0.00016438,2]
[335207008,1723979441002,-500.0,0.00016438,2]
[335207009,1723979441013,-505.09928173,0.00016438,2]
[335207010,1723979441024,-504.05644384,0.00016438,2]
[335207011,1723979441035,-509.92772392,0.00016438,2]
[335207012,1723979441046,-500.0,0.00016438,2]
[335207013,1723979441057,-500.0,0.00016438,2]
[335207014,1723979441067,-502.01994795,0.00016438,2]
[335207015,1723979441078,-500.0,0.00016438,2]
[335207016,1723979441088,-500.0,0.00016438,2]
[335207017,1723979441098,-500.0,0.00016438,2]
[335207018,1723979441108,-500.0,0.00016438,2]
[335207019,1723979441117,-500.0,0.00016438,2]
[335207020,1723979441127,-508.62149033,0.00016438,2]
[335207021,1723979441137,-505.68019105,0.00016438,2]
[335207022,1723979441149,-500.0,0.00016438,2]
[335207023,1723979441160,-500.0,0.00016438,2]
[335207024,1723979441173,-500.0,0.00016438,2]
[335207025,1723979441182,-505.24353292,0.00016438,2]
[335207026,1723979441194,-500.0,0.00016438,2]
[335207027,1723979441204,-500.0,0.00016438,2]
[335207028,1723979441215,-500.0,0.00016438,2]
[335207029,1723979441224,-500.0,0.00016438,2]
[335207030,1723979441236,-500.0,0.00016438,2]
[335207031,1723979441245,-504.66007728,0.00016438,2]
[335207032,1723979441255,-500.0,0.00016438,2]
[335207033,1723979441266,-500.0,0.00016438,2]
[335207034,1723979441277,-505.51210129,0.00016438,2]
[335207035,1723979441290,-509.76833442,0.00016438,2]
[335207036,1723979441299,-500.0,0.00016438,2]
[335207037,1723979441308,-500.0,0.00016438,2]
[335207038,1723979441318,-514.57750072,0.00016438,2]
[335207039,1723979441328,-500.0,0.00016438,2]
[335207040,1723979441338,-500.0,0.00016438,2]
[335207041,1723979441349,-500.81633259,0.00016438,2]
[335207042,1723979441359,-508.68572364,0.00016438,2]
[335207043,1723979441368,-500.0,0.00016438,2]
[335207044,1723979441379,-500.0,0.00016438,2]
[335207045,1723979441389,-500.0,0.00016438,2]
[335207046,1723979441399,-379.85518857,0.00016438,2]
[335207047,1723979441410,-500.0,0.00016438,2]
[335207048,1723979441420,-500.0,0.00016438,2]
[335207049,1723979441431,-512.46796529,0.00016438,2]
[335207050,1723979441442,-500.0,0.00016438,2]
[335207051,1723979441453,-500.0,0.00016438,2]
[335207052,1723979441464,-500.0,0.00016438,2]
[335207053,1723979441477,-500.0,0.00016438,2]
[335207054,1723979441487,-500.0,0.00016438,2]
[335207055,1723979441502,-500.0,0.00016438,2]
[335207056,1723979441512,-500.0,0.00016438,2]
[335207057,1723979441521,-500.0,0.00016438,2]
[335207058,1723979441530,-500.0,0.00016438,2]
[335207059,1723979441541,-500.0,0.00016438,2]
[335207060,1723979441551,-500.0,0.00016438,2]
[335207061,1723979441560,-539.27040279,0.00016438,2]
[335207062,1723979441569,-467.06200236,0.00016438,2]
[335207063,1723979441582,-505.48558456,0.00016438,2]
[335207064,1723979441591,-379.65994937,0.00016438,2]
[335207065,1723979441600,-500.0,0.00016438,2]
[335207066,1723979441609,-500.0,0.00016438,2]
[335207067,1723979441619,-500.0,0.00016438,2]
[335207068,1723979441628,-511.64760546,0.00016438,2]
[335207069,1723979441637,-500.0,0.00016438,2]
[335207070,1723979441647,-500.0,0.00016438,2]
[335207071,1723979441657,-500.0,0.00016438,2]
[335207072,1723979441667,-500.0,0.00016438,2]
[335207073,1723979441676,-892.11,0.00016438,2]
[335207074,1723979441686,-500.0,0.00016438,2]
[335207075,1723979441695,-500.0,0.00016438,2]
[335207076,1723979441705,-521.75951476,0.00016438,2]
[335207077,1723979441714,-500.0,0.00016438,2]
[335207078,1723979441724,-500.0,0.00016438,2]
[335207079,1723979441733,-500.0,0.00016438,2]
[335207080,1723979441744,-508.26415308,0.00016438,2]
[335207081,1723979441753,-790.36,0.00016438,2]
[335207082,1723979441763,-502.35481281,0.00016438,2]
[335207083,1723979441772,-500.0,0.00016438,2]
[335207084,1723979441782,-508.99906591,0.00016438,2]
[335207085,1723979441791,-500.0,0.00016438,2]
[335207086,1723979441800,-500.0,0.00016438,2]
[335207087,1723979441926,-500.0,0.00016438,2]
[335207088,1723979441935,-500.0,0.00016438,2]
[335207089,1723979441945,-500.0,0.00016438,2]
[335207090,1723979441954,-500.0,0.00016438,2]
[335207091,1723979441965,-500.0,0.00016438,2]
[335207092,1723979441975,-500.0,0.00016438,2]
[335207093,1723979441984,-500.0,0.00016438,2]
[335207094,1723979441993,-500.0,0.00016438,2]
[335207095,1723979442003,-500.0,0.00016438,2]
[335207096,1723979442012,-500.0,0.00016438,2]
[335207097,1723979442021,-432.03554059,0.00016438,2]
[335207098,1723979442032,-500.0,0.00016438,2]
[335207099,1723979442041,-507.80802781,0.00016438,2]
[335207100,1723979442050,-571.35,0.00016438,2]
[335207101,1723979442059,-500.0,0.00016438,2]
[335207102,1723979442068,-500.0,0.00016438,2]
[335207103,1723979442078,-500.0,0.00016438,2]
[335207104,1723979442087,-500.0,0.00016438,2]
[335207105,1723979442096,-500.0,0.00016438,2]
[335207106,1723979442105,-500.0,0.00016438,2]
[335207107,1723979442115,-500.0,0.00016438,2]
[335207108,1723979442124,-500.0,0.00016438,2]
[335207109,1723979442133,-500.0,0.00016438,2]
[335207110,1723979442142,-500.0,0.00016438,2]
[335207111,1723979442151,-506.59060356,0.00016438,2]
[335207112,1723979442162,-733.98,0.00016438,2]
[335207113,1723979442171,-500.0,0.00016438,2]
[335207114,1723979442181,-500.0,0.00016438,2]
[335207115,1723979442190,-500.0,0.00016438,2]
[335207116,1723979442200,-500.0,0.00016438,2]
[335207117,1723979442209,-500.0,0.00016438,2]
[335207118,1723979442218,-612.12252098,0.00016438,2]
[335207119,1723979442228,-500.0,0.00016438,2]
[335207120,1723979442237,-500.0,0.00016438,2]
[335207121,1723979442246,-553.54699644,0.00016438,2]
[335207122,1723979442256,-500.0,0.00016438,2]
[335207123,1723979442265,-152.69201869,0.00016438,2]
[335207124,1723979442274,-500.0,0.00016438,2]
[335207125,1723979442283,-500.0,0.00016438,2]
[335207126,1723979442293,-500.0,0.00016438,2]
[335207127,1723979442302,-500.0,0.00016438,2]
[335207128,1723979442311,-500.0,0.00016438,2]
[335207129,1723979442320,-500.0,0.00016438,2]
[335207130,1723979442329,-500.0,0.00016438,2]
[335207131,1723979442338,-500.0,0.00016438,2]
[335207132,1723979442347,-500.0,0.00016438,2]
[335207133,1723979442357,-529.81,0.00016438,2]
[335207134,1723979442366,-151.0,0.00016438,2]
[335207135,1723979442375,-500.0,0.00016438,2]
[335207136,1723979442386,-500.0,0.00016438,2]
[335207137,1723979442397,-500.0,0.00016438,2]
[335207138,1723979442408,-500.0,0.00016438,2]
[335207139,1723979442420,-151.0,0.00016438,2]
[335207140,1723979442431,-500.0,0.00016438,2]
[335207141,1723979442442,-500.0,0.00016438,2]
[335207142,1723979442453,-500.0,0.00016438,2]
[335207143,1723979442462,-500.0,0.00016438,2]
[335207144,1723979442472,-719.11,0.00016438,2]
[335207145,1723979442482,-500.0,0.00016438,2]
[335207146,1723979442493,-528.20501556,0.00016438,2]
[335207147,1723979442506,-500.0,0.00016438,2]
[335207148,1723979442518,-502.75146287,0.00016438,2]
[335207149,1723979442528,-500.0,0.00016438,2]
[335207150,1723979442539,-500.0,0.00016438,2]
[335207151,1723979442548,-500.0,0.00016438,2]
[335207152,1723979442557,-500.0,0.00016438,2]
[335207153,1723979442566,-500.0,0.00016438,2]
[335207154,1723979442576,-662.22,0.00016438,2]
[335207155,1723979442586,-500.0,0.00016438,2]
[335207156,1723979442595,-500.0,0.00016438,2]
[335207157,1723979442605,-538.36,0.00016438,2]
[335207158,1723979442615,-500.0,0.00016438,2]
[335207159,1723979442626,-500.0,0.00016438,2]
[335207160,1723979442636,-1007.76,0.00016438,2]
[335207161,1723979442646,-994.27,0.00016438,2]
[335207162,1723979442656,-500.0,0.00016438,2]
[335207163,1723979442666,-500.0,0.00016438,2]
[335207164,1723979442675,-500.0,0.00016438,2]
[335207165,1723979442684,-500.0,0.00016438,2]
[335207166,1723979442694,-500.0,0.00016438,2]
[335207167,1723979442703,-505.3599567,0.00016438,2]
[335207168,1723979442712,-500.0,0.00016438,2]
[335207169,1723979442722,-500.0,0.00016438,2]
[335207170,1723979442731,-500.0,0.00016438,2]
[335207171,1723979442740,-500.0,0.00016438,2]
[335207172,1723979442750,-500.0,0.00016438,2]
[335207173,1723979442760,-500.0,0.00016438,2]
[335207174,1723979442769,-150.0,0.00016438,2]
[335207175,1723979442778,-666.68,0.00016438,2]
[335207176,1723979442788,-513.97,0.00016438,2]
[335207177,1723979442797,-500.0,0.00016438,2]
[335207178,1723979442807,-500.0,0.00016438,2]
[335207179,1723979442816,-500.0,0.00016438,2]
[335207180,1723979442826,-667.83,0.00016438,2]
[335207181,1723979442835,-500.0,0.00016438,2]
[335207182,1723979442844,-500.0,0.00016438,2]
[335207183,1723979442853,-500.0,0.00016438,2]
[335207184,1723979442862,-500.0,0.00016438,2]
[335207185,1723979442871,-500.0,0.00016438,2]
[335207186,1723979442881,-500.0,0.00016438,2]
[335207187,1723979442891,-521.64609183,0.00016438,2]
[335207188,1723979442901,-515.51,0.00016438,2]
[335207189,1723979442912,-500.0,0.00016438,2]
[335207190,1723979442921,-500.0,0.00016438,2]
[335207191,1723979442930,-500.0,0.00016438,2]
[335207192,1723979442940,-501.6854391,0.00016438,2]
[335207193,1723979442949,-500.0,0.00016438,2]
[335207194,1723979442958,-500.0,0.00016438,2]
[335207195,1723979442967,-500.0,0.00016438,2]
[335207196,1723979442976,-500.0,0.00016438,2]
[335207197,1723979442986,-500.0,0.00016438,2]
[335207198,1723979442995,-500.0,0.00016438,2]
[335207199,1723979443005,-500.0,0.00016438,2]
[335207200,1723979443014,-500.0,0.00016438,2]
[335207201,1723979443024,-504.50626251,0.00016438,2]
[335207202,1723979443034,-500.0,0.00016438,2]
[335207203,1723979443044,-500.0,0.00016438,2]
[335207204,1723979443062,-500.0,0.00016438,2]
[335207205,1723979443077,-500.0,0.00016438,2]
[335207206,1723979443087,-500.0,0.00016438,2]
[335207207,1723979443096,-500.0,0.00016438,2]
[335207208,1723979443107,-500.0,0.00016438,2]
[335207209,1723979443116,-699.21,0.00016438,2]
[335207210,1723979443127,-500.0,0.00016438,2]
[335207211,1723979443138,-500.0,0.00016438,2]
[335207212,1723979443147,-500.0,0.00016438,2]
[335207213,1723979443158,-500.0,0.00016438,2]
[335207214,1723979443168,-500.0,0.00016438,2]
[335207215,1723979443178,-417.33335301,0.00016438,2]
[335207216,1723979443188,-500.0,0.00016438,2]
[335207217,1723979443197,-500.0,0.00016438,2]
[335207218,1723979443207,-500.0,0.00016438,2]
[335207219,1723979443216,-611.83015375,0.00016438,2]
[335207220,1723979443226,-519.3786446,0.00016438,2]
[335207222,1723979443235,-835.69,0.00016438,2]
[335207224,1723979443245,-500.0,0.00016438,2]
[335207226,1723979443255,-500.0,0.00016438,2]
[335207227,1723979443264,-500.0,0.00016438,2]
[335207228,1723979443274,-500.0,0.00016438,2]
[335207230,1723979443284,-500.0,0.00016438,2]
[335207231,1723979443293,-681.64,0.00016438,2]
[335207232,1723979443302,-500.0,0.00016438,2]
[335207233,1723979443312,-667.86,0.00016438,2]
[335207234,1723979443322,-500.0,0.00016438,2]
[335207235,1723979443331,-500.0,0.00016438,2]
[335207236,1723979443341,-500.0,0.00016438,2]
[335207237,1723979443350,-500.0,0.00016438,2]
[335207238,1723979443362,-500.0,0.00016438,2]
[335207239,1723979443373,-502.8264722,0.00016438,2]
[335207240,1723979443382,-500.0,0.00016438,2]
[335207241,1723979443392,-500.0,0.00016438,2]
[335207242,1723979443402,-329.41772764,0.00016438,2]
[335207243,1723979443414,-500.0,0.00016438,2]
[335207245,1723979443424,-2005.0,0.00016438,10]
[335207246,1723979443434,-500.0,0.00016438,2]
[335207247,1723979443443,-500.0,0.00016438,2]
[335207248,1723979443454,-500.0,0.00016438,2]
[335207249,1723979443464,-500.0,0.00016438,2]
[335207251,1723979443474,-500.0,0.00016438,2]
[335207252,1723979443483,-500.0,0.00016438,2]
[335207253,1723979443494,-200.0,0.00016438,2]
[335207254,1723979443507,-418.11879524,0.00016438,2]
[335207255,1723979443517,-500.0,0.00016438,2]
[335207256,1723979443526,-500.0,0.00016438,2]
[335207257,1723979443536,-500.0,0.00016438,2]
[335207258,1723979443547,-500.0,0.00016438,2]
[335207259,1723979443556,-500.0,0.00016438,2]
[335207260,1723979443566,-500.0,0.00016438,2]
[335207261,1723979443576,-697.49,0.00016438,2]
[335207262,1723979443587,-500.0,0.00016438,2]
[335207263,1723979443597,-500.0,0.00016438,2]
[335207264,1723979443607,-500.0,0.00016438,2]